Cogmind - Beta 10.2 @@@ ROGUE MODE // 2021.05.15 @ 22:51:58 Player: Miku Result: Destroyed by P-80 Master with Gamma Rifle Performance ------------- Evolutions (8) 4000 Regions Visited (14) 2800 Robots Destroyed (109) 545 Value Destroyed (5270) 5270 Prototype IDs (16) 320 Alien Tech Used (0) 0 Bonus (51) 51 TOTAL SCORE: 12986 Bonus ------- High Alert Combat Kills 113 Friendly Fire -62 Cogmind --------- Core Integrity 0/1450 Matter 58/300 Energy 100/100 System Corruption 51% Temperature Cool (0) Movement Core (50) Location -2/Research Parts ------- > --- POWER (3) -------- (None) > --- PROPULSION (6) --- (None) > --- UTILITY (12) ----- Advanced Signal Interpreter Improved Targeting Computer > --- WEAPON (2) ------- (None) > --- INVENTORY (4) ---- Advanced Force Field Peak State ------------ > --- POWER ------------ Particle Reactor Particle Reactor Particle Reactor > --- PROPULSION ------- Improved Antigrav System Improved Antigrav System Improved Gyrokinetic Inverter Improved Gyrokinetic Inverter Improved Gyrokinetic Inverter Improved Gyrokinetic Inverter > --- UTILITY ---------- Improved Heat Sink Advanced Heat Sink Advanced Heat Sink Medium Storage Unit Advanced Weight Redist. System Improved Targeting Computer Improved Targeting Computer Advanced Targeting Computer Advanced Target Analyzer Improved Stasis Canceller Advanced Reaction Control System Advanced Force Field > --- WEAPON ----------- Heavy Neutron Cannon Linear Accelerator > --- INVENTORY -------- Particle Reactor Particle Reactor Advanced Force Field Gamma Rifle Compact HERF Cannon Mass Driver Hardcell Cannon [Rating: 143] Favorites ----------- Power Particle Reactor Engine Deuterium Engine Power Core Micro Fission Core Reactor Particle Reactor Propulsion Gyrokinetic Inverter Treads Armored Treads Leg Aluminum Leg Hover Unit Gyrokinetic Inverter Flight Unit Cooled VTOL Module Utility Medium Storage Unit Device Advanced Heat Sink Storage Medium Storage Unit Processor Improved Targeting Computer Protection Improved Light Armor Plating Weapon Heavy Plasma Cannon Energy Gun Beamcaster Energy Cannon Heavy Plasma Cannon Ballistic Gun Assault Rifle Ballistic Cannon Linear Accelerator Launcher Heavy Rocket Launcher Special Weapon Molecular Deconstructor Build | -11 -10 -10 -9 -8 -7 -6 -5 -4 -4 -4 -4 -3 -3 -2 ------- Run | Scr Mat Min Mat Mat Fac Fac Fac Fac Upp Upp Zhi Pro Res Res Slots Evolved 16 | . . . 2 2 2 2 2 2 . . . . 2 2 Power 2 | . . . . . . . 1 . . . . . 1 . Propulsion 4 | . . . 1 1 . . . 2 . . . . . . Utility 10 | . . . 1 1 2 2 1 . . . . . 1 2 Weapon . | . . . . . . . . . . . . . . . Parts Attached 235 | 6 3 8 6 8 12 32 23 9 6 8 . 18 63 33 Power 31 | 1 . 1 . . 1 2 3 1 2 1 . 2 14 3 Engine 9 | 1 . 1 . . 1 2 1 . 2 . . . 1 . Core 4 | . . . . . . . 2 1 . 1 . . . . Reactor 18 | . . . . . . . . . . . . 2 13 3 Propulsion 74 | 2 1 1 3 5 4 10 9 3 2 1 . 5 25 3 Treads 7 | . . . . . . 5 . . . . . . . 2 Leg 37 | 2 1 1 3 5 4 . 6 1 1 . . 3 10 . Wheel . | . . . . . . . . . . . . . . . Hover 24 | . . . . . . . 3 2 1 1 . 2 14 1 Flight 6 | . . . . . . 5 . . . . . . 1 . Utility 71 | 1 2 3 3 3 3 13 8 3 1 3 . 3 11 14 Device 48 | . 1 3 2 1 1 8 4 3 1 1 . 3 9 11 Storage 8 | 1 1 . . . 1 4 1 . . . . . . . Processor 11 | . . . 1 . . 1 3 . . 1 . . 2 3 Hackware . | . . . . . . . . . . . . . . . Protection 4 | . . . . 2 1 . . . . 1 . . . . Artifact . | . . . . . . . . . . . . . . . Weapon 59 | 2 . 3 . . 4 7 3 2 1 3 . 8 13 13 Energy Gun 20 | . . 1 . . . 2 2 1 . 1 . 2 8 3 Energy Cannon 21 | . . 1 . . 2 5 1 1 . . . 1 3 7 Ballistic Gun 6 | 2 . . . . . . . . . 2 . 2 . . Ballistic Cannon 9 | . . 1 . . 1 . . . 1 . . 2 2 2 Launcher 2 | . . . . . 1 . . . . . . . . 1 Special Weapon 1 | . . . . . . . . . . . . 1 . . Impact Weapon . | . . . . . . . . . . . . . . . Slashing Weapon . | . . . . . . . . . . . . . . . Piercing Weapon . | . . . . . . . . . . . . . . . Special Melee Weapon . | . . . . . . . . . . . . . . . Unidentified Prototypes 14 | . . 1 . . . 6 . . . . . 1 3 3 Parts Lost 81 | . . . . 1 11 . 5 2 5 4 . 13 14 26 Power 11 | . . . . . 1 . . . . 1 . 2 2 5 Propulsion 25 | . . . . . 4 . 1 . 3 . . 4 6 7 Utility 27 | . . . . 1 4 . 2 2 1 1 . 3 4 9 Weapon 18 | . . . . . 2 . 2 . 1 2 . 4 2 5 Highest Loss Streak 25 | . . . . 1 9 . 2 2 5 4 . 9 6 25 Average Slot Usage (%) 94 | . 93 100 99 99 89 96 97 92 87 92 . 91 97 88 Engine 5 | . 14 14 11 9 7 6 5 5 4 1 . . . . Core 1 | . . . . . . . 4 5 5 8 . 7 . . Reactor 3 | . . . . . . . . . . . . 1 13 11 Treads 4 | . . . . . . 21 . . . . . . . . Leg 11 | . 28 28 33 36 28 . 6 6 3 5 . 6 4 . Hover 9 | . . . . . . . 10 17 17 19 . 18 21 23 Flight 1 | . . . . . . 3 4 . . . . . . . Device 18 | . 8 14 18 11 6 23 19 14 13 14 . 14 22 25 Storage 11 | . 14 14 11 9 13 18 9 10 10 10 . 10 6 3 Processor 12 | . . . 3 9 7 7 20 21 21 20 . 21 17 15 Energy Gun 3 | . . 11 11 9 3 . 3 5 5 1 . 1 2 . Energy Cannon 6 | . . 10 11 9 6 12 6 5 2 . . 2 3 4 Ballistic Gun 1 | . 28 5 . . . . . . . 3 . 2 . . Ballistic Cannon 1 | . . . . . 1 . . . 2 5 . 1 2 1 Naked Turns . | . . . . . . . . . . . . . . . Heaviest Build 110 | 13 18 29 30 32 37 57 54 51 53 53 46 48 108 110 Greatest Support 160 | 20 20 25 38 48 48 80 65 88 88 76 60 76 111 160 Greatest Overweight (x) 27 | 2 . 1 1 . 1 15 2 . . . . 1 2 27 Average Overweight (x) . | . . . . . . . . . . . . . . . Largest Inventory Capacity 18 | 6 8 8 8 8 8 18 12 12 12 12 12 12 12 8 Average Capacity 10 | 5 6 8 8 8 8 13 11 12 12 12 12 12 10 7 Most Carried 18 | 6 7 8 8 8 8 18 12 12 12 10 10 12 12 8 Average Carried 9 | 2 6 7 7 7 6 12 10 11 11 9 10 11 9 6 Final Capacity 12 | 6 8 8 8 8 8 8 12 12 12 12 12 12 8 4 Final Carried 12 | 6 7 8 8 8 8 8 12 12 10 10 10 11 8 1 Class Distribution -------------------- 50% | Mutant 47% | Scavenger-Mutant Dominant Class ---------------- Mutant | -10/Materials Mutant | -10/Mines Mutant | -9/Materials Mutant | -8/Materials Scavenger-Mutant | -7/Factory Mutant | -6/Factory Mutant | -5/Factory Mutant | -4/Factory Scavenger-Mutant | -4/Upper Caves Scavenger-Mutant | -4/Upper Caves Scavenger-Mutant | -4/Zhirov Scavenger-Mutant | -3/Proximity Caves Scavenger-Mutant | -3/Research Scavenger-Mutant | -2/Research Resources | -11 -10 -10 -9 -8 -7 -6 -5 -4 -4 -4 -4 -3 -3 -2 ----------- Run | Scr Mat Min Mat Mat Fac Fac Fac Fac Upp Upp Zhi Pro Res Res Matter Collected 3045 | 229 57 55 122 80 80 543 174 90 138 120 . 343 750 264 Remotely . | . . . . . . . . . . . . . . . Salvage Created 5971 | . 102 . 437 369 376 618 623 109 192 162 . 567 2115 301 Parts 251 | . 6 . 23 20 19 33 19 6 2 9 . 38 60 16 Haulers Intercepted . | . . . . . . . . . . . . . . . Recyclers Shooed 6 | . . . 1 1 . 1 . . . . . . 3 . Parts Field Recycled . | . . . . . . . . . . . . . . . Retrieved Matter . | . . . . . . . . . . . . . . . Parts Self-Destructed 31 | . . . . . . . . . 2 4 . 25 . . Prevented 7 | . . . . . . . . . . 1 . 6 . . Kills | -11 -10 -10 -9 -8 -7 -6 -5 -4 -4 -4 -4 -3 -3 -2 ------- Run | Scr Mat Min Mat Mat Fac Fac Fac Fac Upp Upp Zhi Pro Res Res Combat Hostiles Destroyed 81 | . 2 . 7 7 8 8 7 1 3 3 . 9 21 5 Guns 27 | . 2 . 1 7 2 . . . 1 3 . 4 7 . Cannons 43 | . . . 6 . 2 8 6 1 2 . . 5 8 5 AOE 4 | . . . . . 4 . . . . . . . . . Classes Destroyed 11 | . 1 . 3 1 2 . 1 . . . . 1 2 . Worker 4 | . . . . . 3 . . . . . . . . 1 Builder 2 | . . . . . . . . . . . . . 2 . Recycler 11 | . . . 1 . 2 1 1 . . . . . 5 1 Watcher 11 | . . . 2 . . 3 1 1 . . . . 3 1 Swarmer 8 | . . . . . . . . . . . . . 4 4 Grunt 31 | . 2 . 5 3 4 3 5 . 2 . . 3 4 . Duelist 3 | . . . . . . . 1 . 1 . . . 1 . Sentry 13 | . . . 2 2 1 . 1 1 . 1 . 1 4 . Specialist 3 | . . . . . . . . . . . . 3 . . Hunter 6 | . . . . 2 . . . . . . . 1 3 . Programmer 17 | . . . . . 3 5 . . . 2 . 1 5 1 Best Kill Streak 11 | . 2 . 6 3 11 3 4 1 1 2 . 4 8 4 Combat Bots Only 6 | . 2 . 6 3 6 3 3 1 1 2 . 4 4 4 Max Kills in Single Turn 3 | . 1 . 1 1 3 1 1 1 1 1 . 1 1 1 Gunslinging . | . . . . . . . . . . . . . . . Exploded 1 | . . . . . 1 . . . . . . . . . Melee . | . . . . . . . . . . . . . . . Uniques/NPCs Destroyed . | . . . . . . . . . . . . . . . Combat | -11 -10 -10 -9 -8 -7 -6 -5 -4 -4 -4 -4 -3 -3 -2 -------- Run | Scr Mat Min Mat Mat Fac Fac Fac Fac Upp Upp Zhi Pro Res Res Damage Taken 13528 | . 82 . 160 396 917 448 721 47 822 304 . 1805 1933 5893 Core 3086 | . 11 . 18 . 130 172 250 . 176 40 . 441 380 1468 Absorbed by Shields 871 | . . . . . . . . . . . . . 386 485 Core Remaining (%) 81 | 100 . 95 95 100 81 79 75 . . . . 42 70 . Volleys Fired 304 | . 6 . 20 18 23 22 27 4 14 7 . 30 105 28 Largest 2 | . 2 . 2 2 2 2 2 2 2 2 . 2 2 2 Hottest 220 | . 40 . 135 135 135 155 180 173 173 132 . 108 179 220 Shots Fired 552 | . 12 . 40 36 41 45 48 6 27 14 . 54 187 42 Gun 208 | . 12 . 20 18 12 . 13 2 14 7 . 31 75 4 Cannon 330 | . . . 20 18 20 45 35 4 13 7 . 18 112 38 Launcher 9 | . . . . . 9 . . . . . . . . . Special 5 | . . . . . . . . . . . . 5 . . Kinetic 128 | . 12 . . . 10 . . . 9 10 . 40 35 12 Thermal 279 | . . . 40 36 22 43 48 6 18 4 . . 38 24 Explosive 9 | . . . . . 9 . . . . . . . . . Electromagnetic 131 | . . . . . . 2 . . . . . 9 114 6 Robot Hit Streak 51 | . 4 . 10 15 7 11 23 28 51 13 . 32 34 6 Robot Miss Streak 4 | . 2 . 3 2 4 2 1 . 1 . . 2 3 3 Penetration Max . | . . . . . . . . . . . . . . . Secondary Targets 1 | . . . . . . . . . . . . 1 . . Max Gunslinging Chain 1 | . . . . . . . . . . . . 1 . . Shots Hit Robots 414 | . 9 . 25 30 22 29 41 5 25 11 . 41 152 24 Core Hits 190 | . 5 . 11 12 25 17 17 4 7 4 . 21 55 12 Critical Hits 25 | . . . . . . . 1 . . 1 . 6 16 1 Critical Kills 10 | . . . . . . . . . . 1 . 4 4 1 Critical Parts Destroyed 10 | . . . . . . . . . . . . 1 9 . Melee Attacks . | . . . . . . . . . . . . . . . Impact . | . . . . . . . . . . . . . . . Slashing . | . . . . . . . . . . . . . . . Piercing . | . . . . . . . . . . . . . . . Sneak Attacks . | . . . . . . . . . . . . . . . Combat Hostiles . | . . . . . . . . . . . . . . . Follow-up Attacks . | . . . . . . . . . . . . . . . Damage Inflicted 13193 | . 118 2 548 691 1138 1094 1432 151 666 388 . 1039 4801 1125 Guns 3853 | . 115 . 227 369 169 . 297 49 311 214 . 519 1514 69 Cannons 8239 | . . . 321 322 287 982 1135 102 355 174 . 467 3098 996 Explosions 962 | . . . . . 682 112 . . . . . . 168 . Melee . | . . . . . . . . . . . . . . . Ramming 139 | . 3 2 . . . . . . . . . 53 21 60 Kinetic 2648 | . 115 . . . 150 . . . 225 269 . 739 1072 78 Thermal 6976 | . . . 548 691 306 1069 1432 151 441 119 . . 1291 928 Explosive 682 | . . . . . 682 . . . . . . . . . Electromagnetic 2748 | . . . . . . 25 . . . . . 247 2417 59 Impact . | . . . . . . . . . . . . . . . Slashing . | . . . . . . . . . . . . . . . Piercing . | . . . . . . . . . . . . . . . Highest Corruption 51 | . . . . . 2 6 . . . 2 2 7 20 51 Average Corruption 7 | . . . . . 1 5 . . . 1 2 4 10 14 Corruption Purged . | . . . . . . . . . . . . . . . Effects 156 | . . . . . 2 30 . . . 3 . 11 77 33 Message Errors 22 | . . . . . . 4 . . . 1 . 5 8 4 Matter Fused 30 | . . . . . . 9 . . . . . 1 13 7 Heat Flow Errors 17 | . . . . . . 5 . . . 1 . . 9 2 Energy Discharges 14 | . . . . . 2 4 . . . . . 2 6 . Parts Rejected 1 | . . . . . . . . . . . . . . 1 Data Loss (minor) 13 | . . . . . . 3 . . . 1 . 2 2 5 Data Loss (major) 5 | . . . . . . 1 . . . . . . 3 1 Misfires 3 | . . . . . . 1 . . . . . . 2 . Misdirections 18 | . . . . . . . . . . . . . 13 5 Targeting Errors 27 | . . . . . . 3 . . . . . . 17 7 Weapon Failures 6 | . . . . . . . . . . . . 1 4 1 Overload Shots 10 | . . . . . . . 10 . . . . . . . Overflow Damage 513 | . . . 5 . 24 45 123 . 25 . . . 188 103 Projectiles 442 | . . . 5 . . . 123 . 25 . . . 186 103 Explosions 70 | . . . . . 24 45 . . . . . . 1 . Melee 1 | . . . . . . . . . . . . . 1 . Knockbacks 20 | . . . . . . . . . 3 3 . 2 10 2 Impact 2 | . . . . . . . . . . . . . 1 1 Kinetic 18 | . . . . . . . . . 3 3 . 2 9 1 Secondary . | . . . . . . . . . . . . . . . Self-Inflicted Damage 359 | . . . . . 161 67 . . . . . 26 78 27 Shots 6 | . . . . . 4 1 . . . . . . 1 . Rammed 18 | . . . 1 . . . . . . . . 6 1 10 Targets Rammed 20 | . 1 1 1 . . . . . . . . 6 1 10 Kicked 2 | . 1 1 . . . . . . . . . . . . Crushed . | . . . . . . . . . . . . . . . Highest Temperature 657 | . 2 . 135 126 120 277 153 57 178 153 . 87 408 657 Average Temperature 100 | . 2 . 38 44 42 106 39 32 65 66 . 21 87 297 Received Heat Transfer 1515 | . 48 . 75 117 162 99 150 18 213 . . 282 108 243 Effects 32 | . . . . . . . . . . . . . 4 28 Shutdowns 17 | . . . . . . . . . . . . . 2 15 Interference 4 | . . . . . . . . . . . . . 2 2 Matter Decay 4 | . . . . . . . . . . . . . . 4 Short Circuit 3 | . . . . . . . . . . . . . . 3 Damage (minor) 1 | . . . . . . . . . . . . . . 1 Damage (major) 3 | . . . . . . . . . . . . . . 3 Siege Activations . | . . . . . . . . . . . . . . . Robots Corrupted 10 | . . . . . . . . . . . . . 10 . Combat Hostiles 6 | . . . . . . . . . . . . . 6 . Parts Fried 39 | . . . . . . . . . . . . . 39 . Impact Corruptions 1 | . . . . . . . . . . . . . 1 . Robots Melted 1 | . . . . . . . 1 . . . . . . . Combat Hostiles 1 | . . . . . . . 1 . . . . . . . Parts Melted 23 | . . . 2 1 5 4 3 1 1 . . . 5 1 Heat Transferred 8684 | . . . 925 1147 444 1366 1879 224 681 148 . . 1297 573 Parts Sabotaged . | . . . . . . . . . . . . . . . Parts Stolen . | . . . . . . . . . . . . . . . Parts Stripped . | . . . . . . . . . . . . . . . Power Chain Reactions 1 | . . . . . . . . . . . . . 1 . Missiles Intercepted . | . . . . . . . . . . . . . . . Alert | -11 -10 -10 -9 -8 -7 -6 -5 -4 -4 -4 -4 -3 -3 -2 ------- Run | Scr Mat Min Mat Mat Fac Fac Fac Fac Upp Upp Zhi Pro Res Res Peak Influence 470 | . 50 19 260 345 438 242 352 176 . . . . 470 348 Initial 209 | . . 19 . 50 156 121 118 74 . . . . 67 209 Average 159 | . 33 12 72 223 260 55 194 88 . . . . 321 237 Maximum Alert Level 2 | . . . 1 1 2 1 1 . . . . . 2 1 Low Security (%) 60 | 100 100 100 79 33 39 95 57 100 . . . . 9 31 Level 1 32 | . . . 20 66 38 4 42 . . . . . 66 68 Level 2 6 | . . . . . 21 . . . . . . . 23 . Level 3 . | . . . . . . . . . . . . . . . Level 4 . | . . . . . . . . . . . . . . . Level 5 . | . . . . . . . . . . . . . . . High Security . | . . . . . . . . . . . . . . . Max Security . | . . . . . . . . . . . . . . . Squads Dispatched 11 | . . . . 2 3 2 . . . . . 1 2 1 Investigation . | . . . . . . . . . . . . . . . Extermination 6 | . . . . . 1 2 . . . . . . 2 1 Reinforcement 3 | . . . . 2 1 . . . . . . . . . Assault 1 | . . . . . . . . . . . . 1 . . Garrison 1 | . . . . . 1 . . . . . . . . . Intercept . | . . . . . . . . . . . . . . . Construction Impeded 1 | . . . . . 1 . . . . . . . . . Haulers Reinforced . | . . . . . . . . . . . . . . . Stealth | -11 -10 -10 -9 -8 -7 -6 -5 -4 -4 -4 -4 -3 -3 -2 --------- Run | Scr Mat Min Mat Mat Fac Fac Fac Fac Upp Upp Zhi Pro Res Res Distress Signals 7 | . . . 1 1 . . 1 . . . . . 2 2 Communications Jammed 13 | . . . . . . 13 . . . . . . . . Distress Signals 13 | . . . . . . 13 . . . . . . . . Times Spotted 184 | . 4 . 18 12 11 18 12 4 14 3 . 26 36 26 Peak Tracking Total 19 | . 2 . 4 4 5 6 4 2 5 2 . 10 7 19 Tactical Retreats 17 | . . . 2 . 1 . 2 1 4 . . 4 3 . Traps | -11 -10 -10 -9 -8 -7 -6 -5 -4 -4 -4 -4 -3 -3 -2 ------- Run | Scr Mat Min Mat Mat Fac Fac Fac Fac Upp Upp Zhi Pro Res Res Traps Triggered 10 | . . . . . . 3 2 1 . . . . 1 3 Indirectly . | . . . . . . . . . . . . . . . Trap Hack Attempts . | . . . . . . . . . . . . . . . Triggered . | . . . . . . . . . . . . . . . Disarmed . | . . . . . . . . . . . . . . . Reprogrammed . | . . . . . . . . . . . . . . . Reused . | . . . . . . . . . . . . . . . Traps Extracted . | . . . . . . . . . . . . . . . Installed . | . . . . . . . . . . . . . . . Triggered 1 | . . . . . . . . . . . . . 1 . Machines | -11 -10 -10 -9 -8 -7 -6 -5 -4 -4 -4 -4 -3 -3 -2 ---------- Run | Scr Mat Min Mat Mat Fac Fac Fac Fac Upp Upp Zhi Pro Res Res Machines Disabled 10 | . . . 2 1 3 2 . 1 . . . 1 . . Max in Single Turn 2 | . . . 1 1 1 2 . 1 . . . 1 . . Machines Sabotaged . | . . . . . . . . . . . . . . . Garrisons Compromised . | . . . . . . . . . . . . . . . Overloaded Fab Kills . | . . . . . . . . . . . . . . . Fab Network Shutdowns . | . . . . . . . . . . . . . . . Hacking | -11 -10 -10 -9 -8 -7 -6 -5 -4 -4 -4 -4 -3 -3 -2 --------- Run | Scr Mat Min Mat Mat Fac Fac Fac Fac Upp Upp Zhi Pro Res Res Machines Accessed 20 | . 4 1 9 . . 1 1 . . . . . 3 1 Terminals 16 | . 3 . 7 . . 1 1 . . . . . 3 1 Fabricators . | . . . . . . . . . . . . . . . Repair Stations 1 | . . . 1 . . . . . . . . . . . Recycling Units 2 | . 1 . 1 . . . . . . . . . . . Scanalyzers . | . . . . . . . . . . . . . . . Garrison Access . | . . . . . . . . . . . . . . . Total Hacks 39 | . 6 1 23 . . 2 1 . . . . . 4 2 Successful 27 | . 3 1 19 . . 1 . . . . . . 1 2 Failed 12 | . 3 . 4 . . 1 1 . . . . . 3 . Catastrophic 5 | . 2 . . . . . . . . . . . 3 . Database Lockouts . | . . . . . . . . . . . . . . . Manual 23 | . 4 . 12 . . . 1 . . . . 1 4 1 Terminals 34 | . 5 . 20 . . 2 1 . . . . . 4 2 Fabricators . | . . . . . . . . . . . . . . . Repair Stations 2 | . . . 2 . . . . . . . . . . . Recycling Units 2 | . 1 . 1 . . . . . . . . . . . Scanalyzers . | . . . . . . . . . . . . . . . Garrison Access . | . . . . . . . . . . . . . . . Terminal Hacks 12 | . 1 1 8 . . 1 . . . . . . . 1 Record 4 | . . . 3 . . . . . . . . . . 1 Prototype ID Bank 1 | . . . 1 . . . . . . . . . . . Open Door 1 | . . 1 . . . . . . . . . . . . Emergency Access Points 1 | . . . 1 . . . . . . . . . . . Alert Level 1 | . . . 1 . . . . . . . . . . . Maintenance Status 1 | . . . 1 . . . . . . . . . . . Recall Reinforcements 1 | . . . . . . 1 . . . . . . . . Zone Layout 2 | . 1 . 1 . . . . . . . . . . . Fabricator Hacks . | . . . . . . . . . . . . . . . Repair Station Hacks 2 | . . . 2 . . . . . . . . . . . Scan Component 1 | . . . 1 . . . . . . . . . . . Repair 1 | . . . 1 . . . . . . . . . . . Recycling Unit Hacks 2 | . 1 . 1 . . . . . . . . . . . Report Inventory 2 | . 1 . 1 . . . . . . . . . . . Scanalyzer . | . . . . . . . . . . . . . . . Garrison Access Hacks . | . . . . . . . . . . . . . . . Unauthorized Hacks 11 | . 1 . 8 . . . . . . . . . 1 1 Terminals 11 | . 1 . 8 . . . . . . . . . 1 1 Botnet 9 | . 1 . 6 . . . . . . . . . 1 1 Operators 2 | . . . 2 . . . . . . . . . . . Fabricators . | . . . . . . . . . . . . . . . Repair Stations . | . . . . . . . . . . . . . . . Recycling Units . | . . . . . . . . . . . . . . . Scanalyzers . | . . . . . . . . . . . . . . . Garrison Access . | . . . . . . . . . . . . . . . Data Cores Recovered 1 | . . . 1 . . . . . . . . . . . Used 1 | . . . 1 . . . . . . . . . . . Hacking Detections 15 | . 2 . 7 . . 1 1 . . . . . 3 1 Full Trace Events 1 | . 1 . . . . . . . . . . . . . Feedback Events . | . . . . . . . . . . . . . . . Feedback Blocked . | . . . . . . . . . . . . . . . Robot Schematics Acquired . | . . . . . . . . . . . . . . . Robots Built . | . . . . . . . . . . . . . . . Matter . | . . . . . . . . . . . . . . . Time . | . . . . . . . . . . . . . . . Total Robot Build Rating . | . . . . . . . . . . . . . . . Part Schematics Acquired . | . . . . . . . . . . . . . . . Parts Built . | . . . . . . . . . . . . . . . Matter . | . . . . . . . . . . . . . . . Time . | . . . . . . . . . . . . . . . Total Part Build Rating . | . . . . . . . . . . . . . . . Parts Repaired . | . . . . . . . . . . . . . . . Time 80 | . . . 80 . . . . . . . . . . . Parts Recycled . | . . . . . . . . . . . . . . . Recycled Matter . | . . . . . . . . . . . . . . . Retrieved Matter . | . . . . . . . . . . . . . . . Retrieved Components . | . . . . . . . . . . . . . . . Parts Scanalyzed . | . . . . . . . . . . . . . . . Part Schematics Acquired . | . . . . . . . . . . . . . . . Parts Damaged . | . . . . . . . . . . . . . . . Bothacking | -11 -10 -10 -9 -8 -7 -6 -5 -4 -4 -4 -4 -3 -3 -2 ------------ Run | Scr Mat Min Mat Mat Fac Fac Fac Fac Upp Upp Zhi Pro Res Res Used RIF Installer . | . . . . . . . . . . . . . . . Robots Hacked . | . . . . . . . . . . . . . . . Non-combat . | . . . . . . . . . . . . . . . Combat . | . . . . . . . . . . . . . . . Robot Hacks Applied . | . . . . . . . . . . . . . . . Relay Couplers Released . | . . . . . . . . . . . . . . . Robots Rewired . | . . . . . . . . . . . . . . . Allies Hacked . | . . . . . . . . . . . . . . . Hacks Repelled . | . . . . . . . . . . . . . . . Allies | -11 -10 -10 -9 -8 -7 -6 -5 -4 -4 -4 -4 -3 -3 -2 -------- Run | Scr Mat Min Mat Mat Fac Fac Fac Fac Upp Upp Zhi Pro Res Res Total Allies . | . . . . . . . . . . . . . . . Largest Group . | . . . . . . . . . . . . . . . Highest-Rated Group . | . . . . . . . . . . . . . . . Highest-Rated Ally . | . . . . . . . . . . . . . . . Total Orders . | . . . . . . . . . . . . . . . Ally Attacks . | . . . . . . . . . . . . . . . Total Damage . | . . . . . . . . . . . . . . . Kills . | . . . . . . . . . . . . . . . Allies Corrupted . | . . . . . . . . . . . . . . . Allies Melted . | . . . . . . . . . . . . . . . Intel | -11 -10 -10 -9 -8 -7 -6 -5 -4 -4 -4 -4 -3 -3 -2 ------- Run | Scr Mat Min Mat Mat Fac Fac Fac Fac Upp Upp Zhi Pro Res Res Robot Analysis Total . | . . . . . . . . . . . . . . . Derelict Logs Recovered 6 | . . 2 . . . . . . 3 1 . . . . Drone Launches . | . . . . . . . . . . . . . . . Drone Recoveries . | . . . . . . . . . . . . . . . Exploration | -11 -10 -10 -9 -8 -7 -6 -5 -4 -4 -4 -4 -3 -3 -2 ------------- Run | Scr Mat Min Mat Mat Fac Fac Fac Fac Upp Upp Zhi Pro Res Res Turns Passed 8485 | 61 192 584 829 309 476 1550 666 267 542 367 3 594 1462 583 Spaces Moved 7255 | 42 125 368 530 165 296 1004 671 302 697 453 5 545 1337 715 Core 17 | 14 . . . . . 1 . . . . . . . 2 Treads 694 | . . . . . . 687 . . . . . . . 7 Legs 1596 | 28 125 368 530 165 296 9 75 . . . . . . . Wheels . | . . . . . . . . . . . . . . . Hover 4540 | . . . . . . . 495 302 697 453 5 545 1337 706 Flight 408 | . . . . . . 307 101 . . . . . . . Fastest Speed 14 | 50 120 120 120 120 120 26 14 65 65 63 68 66 40 46 Average Speed 88 | 112 120 142 123 120 128 128 75 73 65 67 68 71 69 51 Slowest Speed 1400 | 150 120 150 150 120 150 800 159 82 68 68 68 126 176 1400 Overloaded Moves 41 | . . . . . . . 41 . . . . . . . Propulsion Burnouts . | . . . . . . . . . . . . . . . Robots Hopped 11 | . . . . . . 11 . . . . . . . . Cave-ins Triggered . | . . . . . . . . . . . . . . . Exploration Rate (%) 33 | 4 34 62 42 22 13 28 14 7 78 62 7 74 31 23 Regions Visited 14 Branch Regions 5 Pre-discovered Areas 3 | . . 1 . . . . . . 2 . . . . . Known Exits Taken 3 | . . . . . . . 1 1 1 . . . . . Unknown Exits Taken 11 | 1 1 1 1 1 1 1 . . . 1 1 1 1 . Scrap Searched 7 | . . 1 . . . . . . 2 2 . 2 . . Spaces Dug 3 | . . . . . . 1 . . . . . . 2 . Terrain Destroyed 168 | . . . 3 27 51 29 6 . 2 2 . 14 24 10 Melee . | . . . . . . . . . . . . . . . Projectile 66 | . . . 3 2 1 8 6 . 2 2 . 14 18 10 AOE 102 | . . . . 25 50 21 . . . . . . 6 . Terrain Rammed . | . . . . . . . . . . . . . . . Walls Destroyed . | . . . . . . . . . . . . . . . Machines Disabled . | . . . . . . . . . . . . . . . Actions | -11 -10 -10 -9 -8 -7 -6 -5 -4 -4 -4 -4 -3 -3 -2 --------- Run | Scr Mat Min Mat Mat Fac Fac Fac Fac Upp Upp Zhi Pro Res Res Total 8771 | 53 158 429 668 240 348 1238 781 340 752 496 4 685 1702 877 Wait 660 | . 11 34 99 46 9 96 31 20 33 24 . 72 119 66 Move 7220 | 41 124 367 529 164 295 981 670 301 696 452 4 545 1336 715 Hop 11 | . . . . . . 11 . . . . . . . . Pick Up 131 | 6 6 6 6 . 8 38 15 1 3 3 . 9 26 4 Fast Attach 112 | 6 1 3 2 2 2 24 13 6 . 4 . 9 23 17 Attach 56 | . . 1 2 2 7 5 5 1 5 3 . 7 12 6 Detach 17 | . . 3 . 1 . 3 1 1 . . . 1 3 4 Swap 67 | . 2 4 2 4 3 3 5 2 1 1 . 2 28 10 Drop 173 | . 7 10 7 3 1 55 14 4 . 2 . 5 49 16 Fire 304 | . 6 . 20 18 23 22 27 4 14 7 . 30 105 28 Melee . | . . . . . . . . . . . . . . . Ram 10 | . . . . . . . . . . . . 5 1 4 Kick 3 | . 1 1 1 . . . . . . . . . . . Crush 7 | . . . . . . . . . . . . . . 7 Escape Stasis . | . . . . . . . . . . . . . . . Rewire . | . . . . . . . . . . . . . . . Trap . | . . . . . . . . . . . . . . . Miscellaneous . | . . . . . . . . . . . . . . . Route ------- -11/Scrapyard -10/Materials -10/Mines -9/Materials -8/Materials -7/Factory -6/Factory -5/Factory -4/Factory -4/Upper Caves -4/Upper Caves -4/Zhirov -3/Proximity Caves -3/Research -2/Research History --------- Turn | Location | Event 8 | -11/Scrapyard | Discovered new exit (range 14) 62 | -11/Scrapyard | Entered Materials 235 | -10/Materials | Discovered new exit (range 14) 254 | -10/Materials | Entered Mines 260 | -10/Mines | Learned Materials trap positions 305 | -10/Mines | Build established: Mutant 341 | -10/Mines | Learned location of Zion (-6) 342 | -10/Mines | Discovered new exit (range 13) 348 | -10/Mines | Met a Derelict who couldn't figure out how to use a Trap Extractor 646 | -10/Mines | Found a damaged Exp. Sensor Array with a note attached 650 | -10/Mines | Found Prototype Device 651 | -10/Mines | Identified Exp. Sensor Array 838 | -10/Mines | Entered Materials 838 | -9/Materials | Evolved 2 slots: Propulsion x1, Utility x1 839 | -9/Materials | Loaded intel: 12 trap records 1651 | -9/Materials | Discovered new exit (range 7) 1667 | -9/Materials | Entered another Materials area 1667 | -8/Materials | Evolved 2 slots: Propulsion x1, Utility x1 1960 | -8/Materials | Discovered new exit (range 15) 1976 | -8/Materials | Entered Factory 1976 | -7/Factory | Evolved 2 slots: Utility x2 2230 | -7/Factory | Garrison activated, responded to threat 2303 | -7/Factory | Lost 9 parts (1p3n3u2w) 2428 | -7/Factory | Discovered new exit (range 15) 2452 | -7/Factory | Entered another Factory area 2452 | -6/Factory | Evolved 2 slots: Utility x2 4001 | -6/Factory | Discovered new exit (range 7) 4002 | -6/Factory | Entered another Factory area 4002 | -5/Factory | Evolved 2 slots: Power x1, Utility x1 4370 | -5/Factory | Discovered new exit (range 16) 4668 | -5/Factory | Identified exit to Factory 4668 | -5/Factory | Entered another Factory area 4668 | -4/Factory | Evolved 2 slots: Propulsion x2 4915 | -4/Factory | Discovered new exit (range 14) 4927 | -4/Factory | Identified exit to Upper Caves 4935 | -4/Factory | Entered Upper Caves 4966 | -4/Upper Caves | Learned location of Testing (-2) 4984 | -4/Upper Caves | Learned Research terminal intel 5054 | -4/Upper Caves | Encountered a Warlord checkpoint 5220 | -4/Upper Caves | Build established: Scavenger-Mutant 5273 | -4/Upper Caves | Lost 5 parts (3n1u1w) 5463 | -4/Upper Caves | Discovered new exit (range 15) 5464 | -4/Upper Caves | Attracted the attention of an 0b10 checkpoint 5476 | -4/Upper Caves | Identified exit to Upper Caves 5477 | -4/Upper Caves | Entered another Upper Caves area 5606 | -4/Upper Caves | Lost 4 parts (1p1u2w) 5742 | -4/Upper Caves | Attracted the attention of an 0b10 checkpoint 5779 | -4/Upper Caves | Discovered new exit (range 13) 5790 | -4/Upper Caves | Encountered a Warlord checkpoint 5805 | -4/Upper Caves | Learned 8 Research zone layouts 5844 | -4/Upper Caves | Entered Zhirov 5844 | -4/Zhirov | Discovered new exit (range 3) 5847 | -4/Zhirov | Entered Proximity Caves 5888 | -3/Proximity Caves | Acquired the password to a Derelict Tinkerer's latest research 5896 | -3/Proximity Caves | Found Prototype Special Weapon 5896 | -3/Proximity Caves | Identified Molecular Deconstructor 6038 | -3/Proximity Caves | Spotted B-86 Titan 6114 | -3/Proximity Caves | Attracted the attention of an 0b10 checkpoint 6118 | -3/Proximity Caves | Caught by Unaware searching for contraband prototypes 6213 | -3/Proximity Caves | Core integrity fell below 50% 6242 | -3/Proximity Caves | Caught by Unaware searching for contraband prototypes 6243 | -3/Proximity Caves | Lost 9 parts (1p3n3u2w) 6430 | -3/Proximity Caves | Attracted the attention of an 0b10 outpost 6436 | -3/Proximity Caves | Discovered new exit (range 6) 6441 | -3/Proximity Caves | Entered Research 6441 | -3/Research | Evolved 2 slots: Power x1, Utility x1 6443 | -3/Research | Loaded intel: 18 terminal locations 6646 | -3/Research | Lost 5 parts (1p3n1u) 7176 | -3/Research | System corruption reached 10% 7223 | -3/Research | Lost 6 parts (1p2n2u1w) 7611 | -3/Research | Spotted B-86 Titan 7885 | -3/Research | Discovered new exit (range 12) 7903 | -3/Research | Entered another Research area 7903 | -2/Research | Evolved 2 slots: Utility x2 8321 | -2/Research | System corruption reached 10% 8420 | -2/Research | System corruption reached 30% 8434 | -2/Research | Spotted B-90 Cyclops 8456 | -2/Research | Core integrity fell below 50% 8483 | -2/Research | Core integrity fell below 20% 8486 | -2/Research | Destroyed by P-80 Master with Gamma Rifle Last Messages --------------- 08478_ Slammed into P-80 Master. 08479_ Penetrated by Slug. 08479_ K-01 Serf destroyed. 08479_ Slug penetrates G-73 Enforcer. 08479_ Slammed into P-80 Master. 08482_ Enh. Armored Heavy Treads destroyed. 08482_ K-01 Serf collects debris. 08482_ R-10 Processor collects Adv. Heat Sink. 08482_ R-10 Processor collects Myomer Leg. 08483_ K-01 Serf destroyed. 08484_ Triangulator destroyed. 08484_ Enh. Armored Heavy Treads destroyed. 08484_ Imp. Gyrokinetic Inverter destroyed. [Achievement: Z1$+NX3F=JRE3_ZNQR] 08485_ Penetrated by Slug. 08485_ K-01 Serf collects debris. 08485_ U-05 Engineer destroyed. 08485_ R-10 Processor collects Hvy. Laser. 08485_ P-80 Master destroyed. [Achievement: Just Browsing] Map ----- +----------------------------------------------------+ | ?????????????????????????????????????????????????? | | ?????????????????????????????????????????????????? | | ?????????????????????????????????????????????????? | | ???????????####??????????????????????????????????? | | ######????? #??????????????????????????????????? | | # ?? #??????????????????????????????????? | | # """ #??????????????????????????????????? | | # """ #??????????????????????????????????? | | # "S #??????????????????????????????????? | | # """ #??????????????????????????????????? | | # "" #??????????????????????????????????? | | #! #??????????????????????????????????? | | #?? ????????????????????????????????????? | | ##########+####??????????????????????????????????? | | ###????????????????????????????????? | | # #????????????????????????????????? | | #??????????????????????????????????? | | #????##########????????????????????? | | ########## #????# = ! #????????????????????? | | ?? """" # #????# ^ #????????????????????? | | ""S"" # #????# ! #????????????????????? | | "" "" + #????# ^ #????????????????????? | | # #????# ^^* #????????????????????? | | # #????# RR%h #????????????????????? | | # #????# pps! #????????????????????? | | # #????# k|%@p #????????????????????? | | # #????# ggh! #????????????????????? | | ########## #########us###### #?????????????? | | != =%+ tss !!! #?????????????? | | != =!# s !!! !#?????????????? | | # u !! #?????????????? | | ! # #?????????????? | | # ########## #?????????????? | | # # ? ????# #?????????????? | | # # ?????" #?????????????? | | # # ?????+ ????????????? | | ########## # ????? "" "" ????????????? | | ?????????# +?? Y???? ""T"" ?????????????? | | ?????????# #??? "???? "?" ? ?????????????? | | ?????????## ##????"???? ###????????????????????? | | ##????????# #?????????? #??????????????????????? | | ########## #??????????###########??????????????? | | #???????????# #??????????????? | | #???????????# #??????????????? | | ##########/############## "" #??????????????? | | ##???# / + """#??????????????? | | ?????# # # F"#??????????????? | | ?????# # # !] """#??????????????? | | ?????# + # "" #??????????????? | | ?????# ######## + = #??????????????? | +----------------------------------------------------+ Best States ------------- Heat Dissipation 120 Energy Generation 59 Energy Capacity 820 Matter Stores 300 Matter Capacity 450 Sight Range 16 Robot Scan Range 30 Terrain Scan Density 10 ECM Strength 3 Jamming Range 8 Power Amplification 20 Additional Mass Support 24 Armor Coverage 300 Core Shielding 30 Evasion (%) 69 Targeting Accuracy 22 Target Analysis 8 Core Analysis 10 Recoil Reduction 4 Particle Charging 20 Item Schematics ----------------- None Robot Schematics ------------------ None Fabricated ------------ Nothing Alien Tech Used ----------------- None Achievements -------------- Can't Catch Me Dangerous Findings I Spy I'm Back, Baby! It's Just You Just Browsing No Signal Overkill Respectable Loadout Total Silence Whoosh! Z1$+NX3F=JRE3_ZNQR Challenges ------------ None Game ------ Seed NeutronArmoredBlade Manual? 0 Play Time 02:30:36 Cumulative 14.6 hours Start 2021.05.15 @ 19:55:38 End 2021.05.15 @ 22:51:58 Sessions 1 Manual Loads 0 Difficulty Rogue Special Mode None Game No. 16 Rogue 16 Adventurer 0 Explorer 0 Win Type - Total 0 Types 0/0/0/0/0/0/0/0/0 Lore% 19 Gallery% 26 Achievement% 17 Wizard Run 0 Options --------- ASCII 0 Keyboard 0 Movement Numpad Keybinds 0 Fullscreen 1 Font 18/SmallcapsGlow Map View 76x50 Tactical HUD 1 Map Filters NONE Filters NONE Steam 1 RUN: fbf07495-27e0-45cb-bf61-1399e445192f